[Event "Titled Tuesday Blitz March 21 Early 2023"]
[White "benny_aizenberg"]
[Black "Real_taiatai"]
[WhiteElo "2576"]
[BlackElo "2355"]
[Result "0-1"]
[Round "02"]
[TimeControl "180+2"]
[Date "2023.03.21"]
[WhiteClock "0:00:05"]
[BlackClock "0:01:00"]

1. e4 {[%clk 0:03:00]}  c5 {[%clk 0:02:59]} 2. c3 {[%clk 0:03:01]}  Nf6 {[%clk 0:02:55]} 3. e5 {[%clk 0:03:00]}  Nd5 {[%clk 0:02:55]} 4. d4 {[%clk 0:03:01]}  cxd4 {[%clk 0:02:56]} 5. Nf3 {[%clk 0:02:59]}  d6 {[%clk 0:02:56]} 6. Bb5+ {[%clk 0:02:53]}  Nc6 {[%clk 0:02:55]} 7. Nxd4 {[%clk 0:02:43]}  Bd7 {[%clk 0:02:47]} 8. exd6 {[%clk 0:02:42]}  e6 {[%clk 0:02:44]} 9. c4 {[%clk 0:02:36]}  Nxd4 {[%clk 0:02:37]} 10. Bxd7+ {[%clk 0:02:33]}  Qxd7 {[%clk 0:02:30]} 11. Qxd4 {[%clk 0:02:34]}  Nb4 {[%clk 0:02:30]} 12. Qc3 {[%clk 0:02:24]}  Bxd6 {[%clk 0:02:27]} 13. a3 {[%clk 0:02:20]}  Nc6 {[%clk 0:02:12]} 14. Qxg7 {[%clk 0:02:19]}  Be5 {[%clk 0:02:11]} 15. Qg5 {[%clk 0:02:06]}  Qd3 {[%clk 0:02:04]} 16. Nd2 {[%clk 0:01:46]}  Nd4 {[%clk 0:01:58]} 17. Qxe5 {[%clk 0:01:45]}  O-O-O {[%clk 0:01:41]} 18. Rb1 {[%clk 0:01:20]}  f6 {[%clk 0:01:38]} 19. Qc5+ {[%clk 0:00:49]}  Kb8 {[%clk 0:01:37]} 20. Qxd4 {[%clk 0:00:50]}  Rxd4 {[%clk 0:01:35]} 21. h4 {[%clk 0:00:40]}  Rhd8 {[%clk 0:01:35]} 22. Rh3 {[%clk 0:00:40]}  Re4+ {[%clk 0:01:25]} 23. Re3 {[%clk 0:00:32]}  Rxe3+ {[%clk 0:01:24]} 24. fxe3 {[%clk 0:00:32]}  Qxe3+ {[%clk 0:01:24]} 25. Kd1 {[%clk 0:00:33]}  Qg1+ {[%clk 0:01:21]} 26. Kc2 {[%clk 0:00:32]}  Qxg2 {[%clk 0:01:21]} 27. b4 {[%clk 0:00:30]}  e5 {[%clk 0:01:18]} 28. Rb3 {[%clk 0:00:29]}  e4 {[%clk 0:01:17]} 29. c5 {[%clk 0:00:20]}  f5 {[%clk 0:01:17]} 30. b5 {[%clk 0:00:20]}  f4 {[%clk 0:01:16]} 31. c6 {[%clk 0:00:12]}  e3 {[%clk 0:01:12]} 32. Rc3 {[%clk 0:00:13]}  bxc6 {[%clk 0:01:10]} 33. bxc6 {[%clk 0:00:13]}  Rxd2+ {[%clk 0:01:08]} 34. Kb3 {[%clk 0:00:11]}  Kc7 {[%clk 0:01:07]} 35. Rc4 {[%clk 0:00:07]}  Qd5 {[%clk 0:01:03]} 36. Kb4 {[%clk 0:00:05]}  Qxc4+ {[%clk 0:01:00]} 37. Kxc4 {[%clk 0:00:05]}  Rc2+ {[%clk 0:01:00]} 0-1


[Site "https://www.chess.com"]

[Event "Titled Tuesday Blitz March 21 Early 2023"]
[White "Fernandez Siles, Luis"]
[Black "Berezin, Viktor"]
[WhiteFideId "2209420"]
[BlackFideId "14107872"]
[WhiteElo "2186"]
[BlackElo "2310"]
[Result "0-1"]
[Round "02"]
[TimeControl "180+2"]
[Date "2023.03.21"]
[WhiteClock "0:00:45"]
[BlackClock "0:01:25"]

1. d4 {[%clk 0:03:00]}  Nf6 {[%clk 0:03:00]} 2. c4 {[%clk 0:03:00]}  g6 {[%clk 0:03:00]} 3. Nc3 {[%clk 0:03:00]}  Bg7 {[%clk 0:03:01]} 4. e4 {[%clk 0:03:00]}  O-O {[%clk 0:03:01]} 5. Nf3 {[%clk 0:03:00]}  d6 {[%clk 0:03:02]} 6. Be2 {[%clk 0:03:01]}  e5 {[%clk 0:03:02]} 7. O-O {[%clk 0:03:01]}  Nc6 {[%clk 0:03:03]} 8. d5 {[%clk 0:03:02]}  Ne7 {[%clk 0:03:03]} 9. b4 {[%clk 0:03:03]}  a5 {[%clk 0:03:03]} 10. Ba3 {[%clk 0:03:02]}  Nd7 {[%clk 0:03:03]} 11. bxa5 {[%clk 0:03:00]}  Nc5 {[%clk 0:03:02]} 12. Nd2 {[%clk 0:02:45]}  f5 {[%clk 0:02:50]} 13. Bxc5 {[%clk 0:02:31]}  dxc5 {[%clk 0:02:48]} 14. Nb3 {[%clk 0:02:31]}  Kh8 {[%clk 0:02:19]} 15. Nxc5 {[%clk 0:02:26]}  Rxa5 {[%clk 0:02:18]} 16. Nb3 {[%clk 0:02:26]}  Ra8 {[%clk 0:02:17]} 17. Bd3 {[%clk 0:02:19]}  f4 {[%clk 0:02:17]} 18. f3 {[%clk 0:02:18]}  g5 {[%clk 0:02:17]} 19. c5 {[%clk 0:02:19]}  h5 {[%clk 0:02:16]} 20. Be2 {[%clk 0:02:11]}  Ng6 {[%clk 0:02:15]} 21. c6 {[%clk 0:01:50]}  Qe7 {[%clk 0:02:07]} 22. cxb7 {[%clk 0:01:35]}  Bxb7 {[%clk 0:02:07]} 23. Qc2 {[%clk 0:01:18]}  Ba6 {[%clk 0:02:02]} 24. Bxa6 {[%clk 0:01:15]}  Rxa6 {[%clk 0:02:03]} 25. Nb5 {[%clk 0:01:14]}  Rb6 {[%clk 0:01:59]} 26. Qxc7 {[%clk 0:01:06]}  Rxb5 {[%clk 0:01:55]} 27. d6 {[%clk 0:00:57]}  Qxc7 {[%clk 0:01:51]} 28. dxc7 {[%clk 0:00:58]}  Rc8 {[%clk 0:01:51]} 29. Rac1 {[%clk 0:00:57]}  Rb7 {[%clk 0:01:49]} 30. Rfd1 {[%clk 0:00:54]}  Rbxc7 {[%clk 0:01:48]} 31. Rd8+ {[%clk 0:00:50]}  Rxd8 {[%clk 0:01:45]} 32. Rxc7 {[%clk 0:00:51]}  Bf8 {[%clk 0:01:40]} 33. a4 {[%clk 0:00:49]}  g4 {[%clk 0:01:36]} 34. a5 {[%clk 0:00:44]}  g3 {[%clk 0:01:26]} 35. hxg3 {[%clk 0:00:45]}  fxg3 {[%clk 0:01:26]} 36. Kf1 {[%clk 0:00:45]}  Nf4 {[%clk 0:01:25]} 37. Ke1 {[%clk 0:00:45]}  Nxg2+ {[%clk 0:01:25]} 38. Ke2 {[%clk 0:00:45]}  Nf4+ {[%clk 0:01:25]} 0-1


[Site "https://www.chess.com"]

[Event "Titled Tuesday Blitz March 21 Early 2023"]
[White "Savitha Shri B"]
[Black "Bodnaruk, Anastasia"]
[WhiteFideId "35061887"]
[BlackFideId "4181751"]
[WhiteElo "2191"]
[BlackElo "2310"]
[Result "1/2-1/2"]
[Round "02"]
[TimeControl "180+2"]
[Date "2023.03.21"]
[WhiteClock "0:00:04"]
[BlackClock "0:00:10"]

1. e4 {[%clk 0:02:56]}  c5 {[%clk 0:02:59]} 2. Nf3 {[%clk 0:02:57]}  d6 {[%clk 0:03:00]} 3. d4 {[%clk 0:02:57]}  cxd4 {[%clk 0:03:00]} 4. Qxd4 {[%clk 0:02:57]}  Nc6 {[%clk 0:02:58]} 5. Bb5 {[%clk 0:02:55]}  Bd7 {[%clk 0:02:59]} 6. Bxc6 {[%clk 0:02:52]}  Bxc6 {[%clk 0:02:59]} 7. Nc3 {[%clk 0:02:53]}  Nf6 {[%clk 0:02:58]} 8. Bg5 {[%clk 0:02:39]}  e6 {[%clk 0:02:59]} 9. O-O-O {[%clk 0:02:38]}  Be7 {[%clk 0:02:58]} 10. Kb1 {[%clk 0:02:00]}  O-O {[%clk 0:02:58]} 11. h4 {[%clk 0:01:54]}  Qa5 {[%clk 0:02:54]} 12. e5 {[%clk 0:01:50]}  dxe5 {[%clk 0:02:50]} 13. Qxe5 {[%clk 0:01:51]}  Qa6 {[%clk 0:02:35]} 14. Nd4 {[%clk 0:01:44]}  Rfd8 {[%clk 0:02:27]} 15. Nf5 {[%clk 0:01:35]}  exf5 {[%clk 0:02:12]} 16. Qxe7 {[%clk 0:01:33]}  Re8 {[%clk 0:02:12]} 17. Qc5 {[%clk 0:01:26]}  Ng4 {[%clk 0:02:04]} 18. Rhe1 {[%clk 0:01:20]}  Qb6 {[%clk 0:01:51]} 19. Qxf5 {[%clk 0:00:59]}  Rxe1 {[%clk 0:01:30]} 20. Rxe1 {[%clk 0:01:00]}  Qxf2 {[%clk 0:01:29]} 21. Qxf2 {[%clk 0:00:59]}  Nxf2 {[%clk 0:01:29]} 22. b4 {[%clk 0:00:47]}  Ng4 {[%clk 0:01:22]} 23. g3 {[%clk 0:00:48]}  a6 {[%clk 0:01:22]} 24. Kb2 {[%clk 0:00:48]}  f6 {[%clk 0:01:22]} 25. Bf4 {[%clk 0:00:48]}  Rd8 {[%clk 0:01:16]} 26. a4 {[%clk 0:00:45]}  Kf7 {[%clk 0:01:15]} 27. b5 {[%clk 0:00:45]}  axb5 {[%clk 0:01:15]} 28. axb5 {[%clk 0:00:46]}  Be8 {[%clk 0:00:55]} 29. Ne4 {[%clk 0:00:37]}  Ne5 {[%clk 0:00:39]} 30. Bxe5 {[%clk 0:00:34]}  fxe5 {[%clk 0:00:39]} 31. Ng5+ {[%clk 0:00:35]}  Kf6 {[%clk 0:00:40]} 32. Nxh7+ {[%clk 0:00:30]}  Kf5 {[%clk 0:00:40]} 33. c4 {[%clk 0:00:23]}  Bg6 {[%clk 0:00:25]} 34. Ng5 {[%clk 0:00:22]}  Re8 {[%clk 0:00:20]} 35. Kc3 {[%clk 0:00:21]}  e4 {[%clk 0:00:20]} 36. Re3 {[%clk 0:00:19]}  Ke5 {[%clk 0:00:19]} 37. h5 {[%clk 0:00:17]}  Bf5 {[%clk 0:00:18]} 38. b6 {[%clk 0:00:13]}  Rc8 {[%clk 0:00:15]} 39. Nf7+ {[%clk 0:00:12]}  Ke6 {[%clk 0:00:15]} 40. Ng5+ {[%clk 0:00:12]}  Ke5 {[%clk 0:00:15]} 41. Nf7+ {[%clk 0:00:08]}  Ke6 {[%clk 0:00:16]} 42. g4 {[%clk 0:00:08]}  Bxg4 {[%clk 0:00:13]} 43. Rxe4+ {[%clk 0:00:08]}  Kxf7 {[%clk 0:00:13]} 44. Rxg4 {[%clk 0:00:09]}  Rc6 {[%clk 0:00:14]} 45. Rg6 {[%clk 0:00:08]}  Rc5 {[%clk 0:00:14]} 46. Rd6 {[%clk 0:00:06]}  Ke7 {[%clk 0:00:13]} 47. Rg6 {[%clk 0:00:06]}  Kf7 {[%clk 0:00:13]} 48. Rd6 {[%clk 0:00:06]}  Ke7 {[%clk 0:00:14]} 49. Rd5 {[%clk 0:00:07]}  Rc6 {[%clk 0:00:14]} 50. Rb5 {[%clk 0:00:08]}  Rf6 {[%clk 0:00:11]} 51. Kb4 {[%clk 0:00:08]}  Kd6 {[%clk 0:00:11]} 52. Rg5 {[%clk 0:00:08]}  Rf7 {[%clk 0:00:11]} 53. Kb5 {[%clk 0:00:07]}  Kd7 {[%clk 0:00:10]} 54. c5 {[%clk 0:00:08]}  Kc8 {[%clk 0:00:09]} 55. Re5 {[%clk 0:00:07]}  Kd7 {[%clk 0:00:08]} 56. Rd5+ {[%clk 0:00:07]}  Kc8 {[%clk 0:00:09]} 57. Rg5 {[%clk 0:00:08]}  Kd7 {[%clk 0:00:09]} 58. Rg6 {[%clk 0:00:08]}  Kc8 {[%clk 0:00:09]} 59. Rd6 {[%clk 0:00:07]}  Rf5 {[%clk 0:00:08]} 60. Rg6 {[%clk 0:00:06]}  Rxh5 {[%clk 0:00:09]} 61. Rxg7 {[%clk 0:00:06]}  Rh1 {[%clk 0:00:09]} 62. Rg8+ {[%clk 0:00:06]}  Kd7 {[%clk 0:00:09]} 63. Rb8 {[%clk 0:00:07]}  Rb1+ {[%clk 0:00:08]} 64. Kc4 {[%clk 0:00:07]}  Rc1+ {[%clk 0:00:08]} 65. Kb4 {[%clk 0:00:08]}  Rb1+ {[%clk 0:00:08]} 66. Ka3 {[%clk 0:00:09]}  Kc6 {[%clk 0:00:08]} 67. Rc8+ {[%clk 0:00:08]}  Kb5 {[%clk 0:00:09]} 68. Rc7 {[%clk 0:00:08]}  Rc1 {[%clk 0:00:09]} 69. Rxb7 {[%clk 0:00:05]}  Rxc5 {[%clk 0:00:09]} 70. Rb8 {[%clk 0:00:05]}  Rc6 {[%clk 0:00:09]} 71. b7 {[%clk 0:00:06]}  Kb6 {[%clk 0:00:09]} 72. Kb4 {[%clk 0:00:05]}  Rc7 {[%clk 0:00:09]} 73. Rh8 {[%clk 0:00:03]}  Kxb7 {[%clk 0:00:09]} 74. Rh6 {[%clk 0:00:04]}  Rc6 {[%clk 0:00:10]} 75. Rh7+ {[%clk 0:00:05]}  Rc7 {[%clk 0:00:10]} 76. Rxc7+ {[%clk 0:00:04]}  Kxc7 {[%clk 0:00:10]} 1/2-1/2


[Site "https://www.chess.com"]

[Event "Titled Tuesday Blitz March 21 Early 2023"]
[White "Buscar, Michael"]
[Black "Borgaonkar Akshay"]
[WhiteFideId "2603616"]
[BlackFideId "25639110"]
[WhiteElo "2010"]
[BlackElo "2063"]
[Result "1/2-1/2"]
[Round "02"]
[TimeControl "180+2"]
[Date "2023.03.21"]
[WhiteClock "0:00:09"]
[BlackClock "0:00:37"]

1. d4 {[%clk 0:02:48]}  Nf6 {[%clk 0:02:59]} 2. c4 {[%clk 0:02:48]}  g6 {[%clk 0:03:00]} 3. Nc3 {[%clk 0:02:49]}  Bg7 {[%clk 0:03:01]} 4. e4 {[%clk 0:02:50]}  d6 {[%clk 0:03:01]} 5. Nf3 {[%clk 0:02:50]}  O-O {[%clk 0:03:02]} 6. Be2 {[%clk 0:02:50]}  e5 {[%clk 0:03:02]} 7. h3 {[%clk 0:02:50]}  exd4 {[%clk 0:03:00]} 8. Nxd4 {[%clk 0:02:51]}  Re8 {[%clk 0:03:01]} 9. f3 {[%clk 0:02:38]}  c6 {[%clk 0:03:00]} 10. O-O {[%clk 0:02:37]}  d5 {[%clk 0:03:00]} 11. cxd5 {[%clk 0:02:36]}  cxd5 {[%clk 0:03:01]} 12. Bg5 {[%clk 0:02:30]}  dxe4 {[%clk 0:02:59]} 13. Nxe4 {[%clk 0:02:27]}  h6 {[%clk 0:02:51]} 14. Nxf6+ {[%clk 0:02:24]}  Bxf6 {[%clk 0:02:50]} 15. Bxf6 {[%clk 0:02:23]}  Qxf6 {[%clk 0:02:51]} 16. Nb3 {[%clk 0:02:02]}  Nc6 {[%clk 0:02:48]} 17. Bb5 {[%clk 0:01:59]}  Qg5 {[%clk 0:02:32]} 18. Bxc6 {[%clk 0:01:55]}  bxc6 {[%clk 0:02:30]} 19. Qc1 {[%clk 0:01:50]}  Qg3 {[%clk 0:02:27]} 20. Rf2 {[%clk 0:01:35]}  Bxh3 {[%clk 0:02:25]} 21. Qxh6 {[%clk 0:01:34]}  Be6 {[%clk 0:02:06]} 22. Nc5 {[%clk 0:01:24]}  Rad8 {[%clk 0:01:57]} 23. Ne4 {[%clk 0:01:18]}  Qe5 {[%clk 0:01:52]} 24. Qh4 {[%clk 0:01:09]}  Kg7 {[%clk 0:01:50]} 25. a3 {[%clk 0:00:42]}  Rh8 {[%clk 0:01:41]} 26. Qg3 {[%clk 0:00:39]}  Qxg3 {[%clk 0:01:42]} 27. Nxg3 {[%clk 0:00:38]}  Bd5 {[%clk 0:01:43]} 28. Re1 {[%clk 0:00:35]}  Rd7 {[%clk 0:01:31]} 29. Ne4 {[%clk 0:00:30]}  Bxe4 {[%clk 0:01:29]} 30. Rxe4 {[%clk 0:00:28]}  Rd1+ {[%clk 0:01:29]} 31. Rf1 {[%clk 0:00:29]}  Rd2 {[%clk 0:01:29]} 32. Rf2 {[%clk 0:00:29]}  Rh1+ {[%clk 0:01:15]} 33. Kxh1 {[%clk 0:00:29]}  Rxf2 {[%clk 0:01:16]} 34. Rb4 {[%clk 0:00:28]}  c5 {[%clk 0:01:16]} 35. Rb7 {[%clk 0:00:26]}  c4 {[%clk 0:01:16]} 36. Kg1 {[%clk 0:00:24]}  Rd2 {[%clk 0:01:15]} 37. Kh2 {[%clk 0:00:24]}  Kf6 {[%clk 0:01:12]} 38. Kg3 {[%clk 0:00:23]}  Ke6 {[%clk 0:01:12]} 39. Rb4 {[%clk 0:00:20]}  f5 {[%clk 0:01:09]} 40. Rxc4 {[%clk 0:00:19]}  Rxb2 {[%clk 0:01:10]} 41. Rc6+ {[%clk 0:00:19]}  Kf7 {[%clk 0:01:10]} 42. Rc7+ {[%clk 0:00:18]}  Kf6 {[%clk 0:01:00]} 43. Rxa7 {[%clk 0:00:19]}  Rb3 {[%clk 0:01:00]} 44. a4 {[%clk 0:00:19]}  Kg5 {[%clk 0:01:00]} 45. a5 {[%clk 0:00:19]}  Ra3 {[%clk 0:00:59]} 46. a6 {[%clk 0:00:19]}  f4+ {[%clk 0:01:00]} 47. Kh3 {[%clk 0:00:19]}  Ra1 {[%clk 0:00:59]} 48. Kh2 {[%clk 0:00:19]}  Kh6 {[%clk 0:00:56]} 49. Ra8 {[%clk 0:00:19]}  g5 {[%clk 0:00:54]} 50. Ra7 {[%clk 0:00:18]}  Kg6 {[%clk 0:00:51]} 51. Ra8 {[%clk 0:00:18]}  Kh6 {[%clk 0:00:51]} 52. Ra7 {[%clk 0:00:15]}  Ra2 {[%clk 0:00:47]} 53. Ra8 {[%clk 0:00:15]}  g4 {[%clk 0:00:44]} 54. a7 {[%clk 0:00:11]}  Kg7 {[%clk 0:00:41]} 55. fxg4 {[%clk 0:00:09]}  f3 {[%clk 0:00:41]} 56. Kg1 {[%clk 0:00:10]}  Rxg2+ {[%clk 0:00:39]} 57. Kf1 {[%clk 0:00:10]}  Ra2 {[%clk 0:00:40]} 58. g5 {[%clk 0:00:09]}  Kh7 {[%clk 0:00:39]} 59. g6+ {[%clk 0:00:08]}  Kg7 {[%clk 0:00:40]} 60. Ke1 {[%clk 0:00:08]}  Re2+ {[%clk 0:00:40]} 61. Kf1 {[%clk 0:00:09]}  Ra2 {[%clk 0:00:40]} 62. Ke1 {[%clk 0:00:09]}  Re2+ {[%clk 0:00:39]} 63. Kf1 {[%clk 0:00:09]}  Ra2 {[%clk 0:00:37]} 1/2-1/2


[Site "https://www.chess.com"]

[Event "Titled Tuesday Blitz March 21 Early 2023"]
[White "Martinez, Shawn"]
[Black "Popov, Mikhail"]
[WhiteFideId "2039770"]
[BlackFideId "4146182"]
[WhiteElo "2174"]
[BlackElo "2270"]
[Result "0-1"]
[Round "02"]
[TimeControl "180+2"]
[Date "2023.03.21"]
[WhiteClock "0:00:12"]
[BlackClock "0:00:13"]

1. e4 {[%clk 0:03:00]}  e6 {[%clk 0:02:59]} 2. d4 {[%clk 0:02:58]}  d5 {[%clk 0:03:00]} 3. Bd3 {[%clk 0:02:58]}  dxe4 {[%clk 0:02:58]} 4. Bxe4 {[%clk 0:02:59]}  Nf6 {[%clk 0:02:58]} 5. Bf3 {[%clk 0:02:59]}  c5 {[%clk 0:02:57]} 6. Be3 {[%clk 0:02:53]}  Nd5 {[%clk 0:02:14]} 7. Ne2 {[%clk 0:02:43]}  Nc6 {[%clk 0:02:08]} 8. O-O {[%clk 0:02:39]}  Be7 {[%clk 0:02:06]} 9. Nbc3 {[%clk 0:02:27]}  Nxe3 {[%clk 0:01:59]} 10. fxe3 {[%clk 0:02:27]}  O-O {[%clk 0:01:59]} 11. Ne4 {[%clk 0:02:20]}  cxd4 {[%clk 0:01:52]} 12. exd4 {[%clk 0:02:17]}  Qb6 {[%clk 0:01:52]} 13. Rb1 {[%clk 0:02:08]}  Rd8 {[%clk 0:01:52]} 14. c3 {[%clk 0:02:04]}  e5 {[%clk 0:01:50]} 15. Kh1 {[%clk 0:01:57]}  exd4 {[%clk 0:01:49]} 16. cxd4 {[%clk 0:01:58]}  Nxd4 {[%clk 0:01:48]} 17. Nxd4 {[%clk 0:01:59]}  Qxd4 {[%clk 0:01:43]} 18. Qb3 {[%clk 0:01:50]}  Qb6 {[%clk 0:01:32]} 19. Qxb6 {[%clk 0:01:11]}  axb6 {[%clk 0:01:30]} 20. a3 {[%clk 0:01:12]}  b5 {[%clk 0:01:18]} 21. Nc3 {[%clk 0:01:09]}  Rd2 {[%clk 0:00:44]} 22. Nd5 {[%clk 0:00:49]}  Bd8 {[%clk 0:00:33]} 23. Rfd1 {[%clk 0:00:35]}  Rxd1+ {[%clk 0:00:33]} 24. Rxd1 {[%clk 0:00:36]}  Be6 {[%clk 0:00:33]} 25. Nc3 {[%clk 0:00:36]}  Bf6 {[%clk 0:00:27]} 26. Nxb5 {[%clk 0:00:33]}  Bxb2 {[%clk 0:00:23]} 27. Bxb7 {[%clk 0:00:34]}  Rb8 {[%clk 0:00:24]} 28. a4 {[%clk 0:00:32]}  h5 {[%clk 0:00:21]} 29. Be4 {[%clk 0:00:31]}  Bb3 {[%clk 0:00:17]} 30. Rd7 {[%clk 0:00:20]}  Bxa4 {[%clk 0:00:16]} 31. Nd6 {[%clk 0:00:20]}  Bxd7 {[%clk 0:00:15]} 32. h4 {[%clk 0:00:16]}  Be5 {[%clk 0:00:15]} 33. Nc4 {[%clk 0:00:12]}  Bg3 {[%clk 0:00:15]} 34. Bf3 {[%clk 0:00:12]}  Rb1+ {[%clk 0:00:13]} 0-1


[Site "https://www.chess.com"]

[Event "Titled Tuesday Blitz March 21 Early 2023"]
[White "Sovetbekova, Nurai"]
[Black "Kavutskiy, Konstantin"]
[WhiteFideId "13801910"]
[BlackFideId "2026384"]
[WhiteElo "1857"]
[BlackElo "2369"]
[Result "0-1"]
[Round "02"]
[TimeControl "180+2"]
[Date "2023.03.21"]
[WhiteClock "0:00:13"]
[BlackClock "0:01:19"]

1. d4 {[%clk 0:03:00]}  Nf6 {[%clk 0:02:59]} 2. c4 {[%clk 0:03:00]}  g6 {[%clk 0:03:00]} 3. Nc3 {[%clk 0:03:00]}  Bg7 {[%clk 0:03:01]} 4. e4 {[%clk 0:02:59]}  d6 {[%clk 0:03:02]} 5. Nf3 {[%clk 0:03:00]}  O-O {[%clk 0:03:02]} 6. Be2 {[%clk 0:03:00]}  e5 {[%clk 0:03:01]} 7. d5 {[%clk 0:03:00]}  Nbd7 {[%clk 0:03:01]} 8. Nd2 {[%clk 0:02:50]}  Ne8 {[%clk 0:02:52]} 9. h4 {[%clk 0:02:47]}  a5 {[%clk 0:02:45]} 10. h5 {[%clk 0:02:43]}  f5 {[%clk 0:02:39]} 11. hxg6 {[%clk 0:02:40]}  hxg6 {[%clk 0:02:39]} 12. exf5 {[%clk 0:02:40]}  gxf5 {[%clk 0:02:39]} 13. Nf3 {[%clk 0:02:25]}  e4 {[%clk 0:02:37]} 14. Ng5 {[%clk 0:02:18]}  Nc5 {[%clk 0:02:37]} 15. Be3 {[%clk 0:02:14]}  f4 {[%clk 0:02:13]} 16. Bxc5 {[%clk 0:02:00]}  Qxg5 {[%clk 0:02:11]} 17. Nxe4 {[%clk 0:01:27]}  Qg6 {[%clk 0:02:02]} 18. Bd3 {[%clk 0:01:17]}  dxc5 {[%clk 0:01:57]} 19. Nxc5 {[%clk 0:01:10]}  Bf5 {[%clk 0:01:57]} 20. Bxf5 {[%clk 0:01:05]}  Qxf5 {[%clk 0:01:58]} 21. Ne6 {[%clk 0:01:02]}  Nd6 {[%clk 0:01:54]} 22. Rh5 {[%clk 0:00:45]}  Qg6 {[%clk 0:01:37]} 23. Rg5 {[%clk 0:00:35]}  Qe4+ {[%clk 0:01:37]} 24. Kf1 {[%clk 0:00:35]}  Rf7 {[%clk 0:01:38]} 25. Qg4 {[%clk 0:00:30]}  Nf5 {[%clk 0:01:35]} 26. Nxf4 {[%clk 0:00:18]}  Raf8 {[%clk 0:01:24]} 27. Re1 {[%clk 0:00:18]}  Qxc4+ {[%clk 0:01:22]} 28. Kg1 {[%clk 0:00:18]}  Nh6 {[%clk 0:01:21]} 29. Qg3 {[%clk 0:00:15]}  Qxf4 {[%clk 0:01:20]} 30. Rxg7+ {[%clk 0:00:16]}  Rxg7 {[%clk 0:01:20]} 31. Qh3 {[%clk 0:00:13]}  Qxf2+ {[%clk 0:01:19]} 0-1


[Site "https://www.chess.com"]

[Event "Titled Tuesday Blitz March 21 Early 2023"]
[White "Friedel, Tom"]
[Black "Nefedov, Sergey"]
[WhiteFideId "2002108"]
[BlackFideId "24113417"]
[WhiteElo "2312"]
[BlackElo "2227"]
[Result "0-1"]
[Round "02"]
[TimeControl "180+2"]
[Date "2023.03.21"]
[WhiteClock "0:00:08"]
[BlackClock "0:00:59"]

1. e4 {[%clk 0:03:00]}  d5 {[%clk 0:02:57]} 2. Nc3 {[%clk 0:02:59]}  dxe4 {[%clk 0:02:57]} 3. Nxe4 {[%clk 0:02:59]}  Nf6 {[%clk 0:02:58]} 4. Nxf6+ {[%clk 0:02:59]}  gxf6 {[%clk 0:02:58]} 5. Nf3 {[%clk 0:03:00]}  h5 {[%clk 0:02:59]} 6. d4 {[%clk 0:03:00]}  Nc6 {[%clk 0:02:56]} 7. Be2 {[%clk 0:02:49]}  Rg8 {[%clk 0:02:53]} 8. g3 {[%clk 0:02:37]}  Bh3 {[%clk 0:02:52]} 9. Be3 {[%clk 0:02:37]}  Qd5 {[%clk 0:02:49]} 10. c4 {[%clk 0:02:30]}  Qe4 {[%clk 0:02:44]} 11. Qb1 {[%clk 0:02:17]}  Qxb1+ {[%clk 0:02:36]} 12. Rxb1 {[%clk 0:02:17]}  O-O-O {[%clk 0:02:37]} 13. Rd1 {[%clk 0:02:06]}  e5 {[%clk 0:02:30]} 14. d5 {[%clk 0:01:57]}  Bb4+ {[%clk 0:02:13]} 15. Bd2 {[%clk 0:01:57]}  Bxd2+ {[%clk 0:02:13]} 16. Rxd2 {[%clk 0:01:56]}  Bg2 {[%clk 0:02:13]} 17. Rg1 {[%clk 0:01:53]}  Bxf3 {[%clk 0:02:13]} 18. Bxf3 {[%clk 0:01:53]}  Nd4 {[%clk 0:02:13]} 19. Bxh5 {[%clk 0:01:50]}  Rh8 {[%clk 0:02:13]} 20. Bd1 {[%clk 0:01:45]}  Rxh2 {[%clk 0:02:12]} 21. f4 {[%clk 0:01:39]}  Rdh8 {[%clk 0:02:00]} 22. Rf2 {[%clk 0:01:27]}  Rxf2 {[%clk 0:01:54]} 23. Kxf2 {[%clk 0:01:27]}  Kd7 {[%clk 0:01:55]} 24. Kg2 {[%clk 0:01:23]}  Kd6 {[%clk 0:01:48]} 25. Rf1 {[%clk 0:01:22]}  e4 {[%clk 0:01:44]} 26. Re1 {[%clk 0:01:08]}  f5 {[%clk 0:01:42]} 27. b4 {[%clk 0:00:57]}  b5 {[%clk 0:01:35]} 28. Bb3 {[%clk 0:00:43]}  bxc4 {[%clk 0:01:28]} 29. Bxc4 {[%clk 0:00:42]}  Nf3 {[%clk 0:01:27]} 30. Rh1 {[%clk 0:00:42]}  Rxh1 {[%clk 0:01:25]} 31. Kxh1 {[%clk 0:00:42]}  Nd2 {[%clk 0:01:25]} 32. Bb5 {[%clk 0:00:36]}  Kxd5 {[%clk 0:01:25]} 33. Bd7 {[%clk 0:00:34]}  e3 {[%clk 0:01:23]} 34. Kg2 {[%clk 0:00:34]}  Ke4 {[%clk 0:01:21]} 35. Bc6+ {[%clk 0:00:21]}  Kd3 {[%clk 0:01:19]} 36. Bd7 {[%clk 0:00:22]}  e2 {[%clk 0:01:12]} 37. Kf2 {[%clk 0:00:19]}  Nf3 {[%clk 0:01:12]} 38. Bb5+ {[%clk 0:00:19]}  Kc3 {[%clk 0:01:05]} 39. Bxe2 {[%clk 0:00:20]}  Nd4 {[%clk 0:01:05]} 40. b5 {[%clk 0:00:18]}  Nxe2 {[%clk 0:01:04]} 41. Kxe2 {[%clk 0:00:18]}  Kb4 {[%clk 0:01:04]} 42. Ke3 {[%clk 0:00:17]}  Kxb5 {[%clk 0:01:04]} 43. Kd4 {[%clk 0:00:13]}  f6 {[%clk 0:00:56]} 44. Kd5 {[%clk 0:00:10]}  c5 {[%clk 0:00:57]} 45. Ke6 {[%clk 0:00:11]}  c4 {[%clk 0:00:57]} 46. Kxf6 {[%clk 0:00:11]}  c3 {[%clk 0:00:58]} 47. Kxf5 {[%clk 0:00:08]}  c2 {[%clk 0:00:59]} 0-1


[Site "https://www.chess.com"]